bitfinex/quotes_SOLUSD_20251116
["timestamp","ask_amount","ask_price","bid_price","bid_amount"]
[1763256997698,7.63623758,138.58,138.54,22.81435234]
[1763256997910,0.66,138.57,138.54,22.81435234]
[1763256998411,6.97623758,138.58,138.54,22.81435234]
[1763256998597,22.81206617,138.59,138.54,23.47435234]
[1763256998796,0.66,138.58,138.54,23.47435234]
[1763256999836,0.66,138.58,138.54,14.19435234]
[1763257000019,7.63623758,138.58,138.54,14.19435234]
[1763257000320,14.85246649,138.58,138.54,14.19435234]
[1763257000486,6.97623758,138.55,138.52,0.1]
[1763257000681,15.59623758,138.55,138.52,7.31913793]
[1763257001204,9.28,138.55,138.52,7.31913793]
[1763257001504,9.28,138.55,138.52,0.1]
[1763257001818,0.66,138.54,138.52,7.31910964]
[1763257002010,15.59623758,138.55,138.52,7.31910964]
[1763257002011,9.28,138.55,138.52,7.31910964]
[1763257002337,0.66,138.59,138.54,6.97623758]
[1763257002496,0.66,138.59,138.56,6.97623758]
[1763257002684,8.62,138.6,138.57,6.97623758]
[1763257002885,23.47040173,138.62,138.58,6.97623758]
[1763257003193,22.81040173,138.62,138.58,6.97623758]
[1763257003385,6.97623758,138.59,138.52,7.31910964]
[1763257003704,6.97623758,138.57,138.53,6.97623758]
[1763257003889,14.19293341,138.57,138.53,6.97623758]
[1763257004092,7.63623758,138.56,138.52,7.07623758]
[1763257004293,6.97623758,138.54,138.52,0.1]
[1763257004512,8.62,138.53,138.52,0.1]
[1763257004691,7.63623758,138.55,138.52,0.1]
[1763257004692,8.62,138.54,138.52,0.1]
[1763257004890,9.28,138.54,138.52,0.1]
[1763257005110,9.28,138.54,138.52,7.31917175]
[1763257005404,8.62,138.54,138.52,14.29540933]
[1763257005889,8.62,138.54,138.52,0.1]
[1763257006096,9.28,138.54,138.52,0.1]
[1763257006304,8.62,138.54,138.52,0.1]
[1763257006509,8.62,138.54,138.52,7.07623758]
[1763257007093,9.28,138.56,138.52,7.07623758]
[1763257007715,0.66,138.55,138.52,0.1]
[1763257008503,0.66,138.61,138.54,6.97623758]
[1763257008690,0.66,138.61,138.53,0.66]
[1763257008691,15.59623758,138.6,138.55,6.97623758]
[1763257009085,8.62,138.6,138.57,6.97623758]
[1763257009516,9.28,138.6,138.57,6.97623758]
[1763257010415,8.62,138.62,138.58,6.97623758]
[1763257010616,9.28,138.62,138.58,6.97623758]
[1763257011141,0.66,138.61,138.57,6.97623758]
[1763257011295,7.63623758,138.61,138.56,29.62743758]
[1763257011495,6.97623758,138.6,138.55,22.81339431]
[1763257011691,6.97623758,138.59,138.55,15.59623758]
[1763257011908,16.25623758,138.59,138.54,14.19418504]
[1763257012099,16.25623758,138.59,138.56,6.97623758]
[1763257012100,0.66,138.58,138.56,6.97623758]
[1763257012516,0.66,138.58,138.55,6.97623758]
[1763257014917,0.66,138.58,138.55,14.19384074]
[1763257016225,14.85232741,138.58,138.53,29.62743758]
[1763257016432,6.97623758,138.57,138.53,29.62743758]
[1763257016610,14.8528902,138.57,138.52,8.72]
[1763257016810,0.66,138.56,138.53,6.97623758]
[1763257018525,0.66,138.56,138.53,14.19454258]
[1763257019037,0.66,138.56,138.53,6.97623758]
[1763257020435,7.87709872,138.56,138.53,6.97623758]
[1763257020619,6.97623758,138.55,138.52,0.1]
[1763257020931,7.63623758,138.55,138.52,0.1]
[1763257021140,0.66,138.54,138.52,0.1]
[1763257021435,8.62,138.56,138.52,0.1]
[1763257021619,112.82,138.58,138.54,6.97623758]
[1763257021823,6.97623758,138.56,138.52,0.1]
[1763257022334,0.66,138.57,138.52,0.1]
[1763257022335,7.63623758,138.55,138.52,0.1]
[1763257022544,14.19489057,138.53,138.52,0.1]
[1763257022842,16.25623758,138.54,138.52,0.1]
[1763257023136,7.63623758,138.53,138.52,0.1]
[1763257023921,23.3112,138.53,138.52,0.1]
[1763257024112,0.66,138.53,138.52,0.1]
[1763257024623,22.6512,138.59,138.52,7.73623758]
[1763257024934,14.85105175,138.61,138.56,6.97623758]
[1763257025133,8.62,138.6,138.56,6.97623758]
[1763257025340,0.66,138.59,138.56,6.97623758]
[1763257025638,8.62,138.6,138.56,6.97623758]
[1763257025824,0.66,138.6,138.57,6.97623758]
[1763257026433,0.66,138.6,138.56,6.97623758]
[1763257026639,0.66,138.6,138.57,14.19280682]
[1763257027031,0.66,138.6,138.57,6.97623758]
[1763257027541,8.62,138.63,138.59,6.97623758]
[1763257027845,9.28,138.63,138.59,6.97623758]
[1763257028148,0.66,138.62,138.59,6.97623758]
[1763257028462,0.66,138.62,138.57,0.66]
[1763257028463,6.97623758,138.61,138.57,6.97623758]
[1763257028749,14.85043152,138.62,138.57,14.19231287]
[1763257029047,0.66,138.61,138.57,14.19231287]
[1763257029847,0.66,138.61,138.58,14.19217333]
[1763257030052,7.8746782,138.61,138.58,6.97623758]
[1763257030249,7.8746782,138.61,138.57,6.97623758]
[1763257030430,14.85091578,138.61,138.57,6.97623758]
[1763257030630,0.66,138.6,138.57,6.97623758]
[1763257031543,0.66,138.6,138.57,14.19266584]
[1763257031942,14.85127169,138.6,138.56,14.19322934]
[1763257032146,14.85127169,138.6,138.55,15.59623758]
[1763257032458,0.66,138.59,138.55,6.97623758]
[1763257033454,6.97623758,138.56,138.52,14.29526679]
[1763257033629,6.97623758,138.56,138.52,7.07623758]
[1763257033828,0.68,138.55,138.52,14.29534938]
[1763257034164,22.81183798,138.59,138.54,6.97623758]
[1763257034334,0.68,138.56,138.53,6.97623758]
[1763257034535,6.97623758,138.57,138.53,6.97623758]
[1763257034730,6.97623758,138.55,138.52,0.1]
[1763257035060,6.97623758,138.53,138.49,0.1]
[1763257035228,6.97623758,138.5,138.49,0.1]
[1763257035434,6.97623758,138.5,138.48,0.1]
[1763257035754,6.97623758,138.5,138.42,6.97623758]
[1763257035755,23.49697553,138.49,138.42,6.97623758]
[1763257035928,6.97623758,138.45,138.41,6.97623758]
[1763257036125,6.97623758,138.45,138.4,15.69623758]
[1763257036328,6.97623758,138.43,138.4,0.1]
[1763257036525,6.97623758,138.43,138.4,22.7512]
[1763257036752,15.59623758,138.46,138.42,6.97623758]
[1763257036951,6.97623758,138.45,138.41,6.97623758]
[1763257037156,15.59623758,138.46,138.42,7.64623758]
[1763257037459,7.65623758,138.45,138.41,22.6512]
[1763257037660,7.65623758,138.45,138.41,29.62743758]
[1763257037846,7.65623758,138.44,138.4,0.1]
[1763257038032,6.97623758,138.42,138.4,0.1]
[1763257038557,7.65623758,138.42,138.4,0.1]
[1763257038755,7.65623758,138.41,138.4,0.1]
[1763257038953,7.65623758,138.41,138.39,0.1]
[1763257039173,23.25247516,138.4,138.3,20.09290202]
[1763257039459,23.25247516,138.4,138.33,6.97623758]
[1763257039460,9.3,138.4,138.33,6.97623758]
[1763257039631,0.68,138.43,138.36,6.97623758]
[1763257039832,9.3,138.42,138.38,6.97623758]
[1763257040060,8.62,138.43,138.4,6.97623758]
[1763257040232,9.3,138.43,138.38,0.67]
[1763257040550,15.59623758,138.43,138.38,6.97623758]
[1763257040761,0.68,138.42,138.38,6.97623758]
[1763257040972,7.65623758,138.42,138.37,6.97623758]
[1763257041128,8.62,138.43,138.39,6.97623758]
[1763257041334,8.62,138.43,138.4,6.97623758]
[1763257041538,8.62,138.43,138.39,14.20215249]
[1763257041968,8.62,138.43,138.4,7.64623758]
[1763257042140,6.97623758,138.49,138.42,6.97623758]
[1763257042342,15.61623758,138.49,138.44,6.97623758]
[1763257042632,15.61623758,138.49,138.39,33.93080399]
[1763257042633,6.97623758,138.45,138.39,7.89591491]
[1763257042857,6.97623758,138.45,138.4,6.97623758]
[1763257043061,7.65623758,138.45,138.4,6.97623758]
[1763257043262,6.97623758,138.5,138.44,6.97623758]
[1763257043437,8.64,138.5,138.46,6.97623758]
[1763257043758,15.61623758,138.5,138.46,14.19829836]
[1763257043967,16.29623758,138.5,138.46,7.22206078]
[1763257044133,23.51646578,138.5,138.45,6.97623758]
[1763257044464,7.65623758,138.49,138.45,6.97623758]
[1763257044759,0.68,138.49,138.45,6.97623758]
[1763257044972,0.68,138.49,138.46,6.97623758]
[1763257045258,7.65623758,138.49,138.44,6.97623758]
[1763257045568,7.65623758,138.49,138.39,0.67]
[1763257045569,6.97623758,138.45,138.39,0.67]
[1763257045752,8.64,138.51,138.44,6.97623758]
[1763257046064,6.97623758,138.5,138.45,6.97623758]
[1763257046274,8.64,138.51,138.47,6.97623758]
[1763257046432,15.61623758,138.52,138.47,6.97623758]
[1763257046634,15.61623758,138.52,138.44,8.64]
[1763257046635,0.68,138.53,138.49,6.97623758]
[1763257046833,8.64,138.54,138.5,6.97623758]
[1763257047033,15.61623758,138.54,138.49,6.97623758]
[1763257047260,16.29623758,138.54,138.49,6.97623758]
[1763257047457,8.64,138.56,138.5,6.97623758]
[1763257047657,6.97623758,138.54,138.5,7.21995873]
[1763257047861,6.97623758,138.54,138.49,6.97623758]
[1763257048038,7.65623758,138.53,138.48,14.19732837]
[1763257048236,9.32,138.53,138.49,6.97623758]
[1763257048449,16.29623758,138.53,138.48,7.89109079]
[1763257048736,16.29623758,138.53,138.49,6.97623758]
[1763257048930,9.32,138.53,138.49,6.97623758]
[1763257049345,16.29623758,138.53,138.48,14.86732837]
[1763257049555,15.61623758,138.53,138.48,7.64623758]
[1763257049765,16.29623758,138.53,138.48,7.64623758]
[1763257049941,16.29623758,138.53,138.48,14.8674488]
[1763257050137,0.68,138.58,138.52,6.97623758]
[1763257050460,6.97623758,138.54,138.49,0.67]
[1763257050666,0.56,138.55,138.48,6.97623758]
[1763257050964,6.97623758,138.52,138.47,7.64623758]
[1763257051134,6.97623758,138.52,138.47,0.67]
[1763257051339,6.97623758,138.51,138.47,0.67]
[1763257051562,6.97623758,138.52,138.47,0.67]
[1763257051739,6.97623758,138.52,138.48,7.22125938]
[1763257051938,6.97623758,138.52,138.47,14.8678663]
[1763257052138,6.97623758,138.52,138.48,0.67]
[1763257053069,4.38654373,138.52,138.48,0.67]
[1763257053273,4.38654373,138.53,138.48,5.05654373]
[1763257053766,5.62654373,138.55,138.5,11.60676033]
[1763257053973,4.38654373,138.54,138.49,12.27711531]
[1763257054145,4.38654373,138.54,138.49,5.05654373]
[1763257054470,4.38654373,138.5,138.45,18.72656341]
[1763257054776,4.38654373,138.5,138.46,4.38654373]
[1763257055072,8.64,138.52,138.48,4.38654373]
[1763257055458,13.02654373,138.54,138.49,5.05654373]
[1763257055671,4.38654373,138.53,138.49,0.67]
[1763257055971,4.38654373,138.52,138.47,4.38654373]
[1763257056462,5.06654373,138.52,138.48,0.67]
[1763257056965,4.38654373,138.53,138.48,5.05654373]
[1763257057139,8.64,138.54,138.48,5.05654373]
[1763257057140,20.24480309,138.54,138.49,4.38654373]
[1763257057340,8.64,138.54,138.5,4.38654373]
[1763257057563,8.64,138.54,138.51,0.67]
[1763257057741,4.38654373,138.55,138.51,7.88923223]
[1763257058054,20.24395359,138.56,138.51,12.27577596]
[1763257058253,8.64,138.56,138.51,29.65501428]
[1763257058453,13.02654373,138.58,138.53,4.38654373]
[1763257058651,0.68,138.57,138.53,4.38654373]
[1763257058850,5.06654373,138.57,138.52,0.67]
[1763257059058,5.06654373,138.57,138.53,4.38654373]
[1763257059851,0.68,138.57,138.53,11.60473508]
[1763257060374,8.64,138.58,138.55,4.38654373]
[1763257060666,8.64,138.58,138.53,25.26482384]
[1763257060857,8.64,138.58,138.55,5.05654373]
[1763257061256,20.24271415,138.58,138.53,4.38654373]
[1763257061462,4.38654373,138.55,138.5,4.38654373]
[1763257061672,4.38654373,138.54,138.5,5.05654373]
[1763257061973,8.64,138.55,138.52,4.38654373]
[1763257062456,8.64,138.55,138.51,12.27600658]
[1763257063144,9.32,138.55,138.51,12.27600658]
[1763257063983,8.64,138.55,138.52,4.38654373]
[1763257064275,13.02654373,138.57,138.52,5.04654373]
[1763257064448,20.95329074,138.57,138.52,5.04654373]
[1763257064648,20.95324526,138.57,138.53,0.66]
[1763257064958,0.71,138.56,138.52,4.38654373]
[1763257065271,0.71,138.56,138.52,5.04654373]
[1763257065478,5.09654373,138.56,138.52,0.66]
[1763257065972,5.09654373,138.56,138.52,7.87872278]
[1763257066270,8.64,138.57,138.54,4.38654373]
[1763257066576,13.73654373,138.61,138.56,4.38654373]
[1763257066783,4.38654373,138.6,138.55,4.38654373]
[1763257066951,4.38654373,138.6,138.52,33.90665809]
[1763257067157,13.02654373,138.61,138.56,5.04654373]
[1763257067472,8.64,138.61,138.57,4.38654373]
[1763257067678,8.64,138.61,138.57,5.04654373]
[1763257067977,16.56451018,138.61,138.57,4.38654373]
[1763257068180,9.35,138.61,138.57,11.60280515]
[1763257068359,9.35,138.61,138.57,12.26280515]
[1763257069884,4.38654373,138.58,138.54,11.60467567]
[1763257070087,11.60262264,138.58,138.54,11.60467567]
[1763257070286,11.60262264,138.58,138.54,7.21813194]
[1763257070584,0.71,138.57,138.54,7.21813194]
[1763257070879,11.60262264,138.58,138.54,11.60467567]
[1763257070880,13.73654373,138.58,138.54,11.60467567]
[1763257071057,20.95273028,138.58,138.54,11.60467567]
[1763257071257,20.95273028,138.58,138.54,4.38654373]
[1763257071563,9.35,138.58,138.54,11.60444506]
[1763257071773,8.64,138.58,138.55,4.38654373]
[1763257071961,9.35,138.6,138.56,4.38654373]
[1763257072162,9.35,138.6,138.56,12.2631368]
[1763257072585,16.56501311,138.6,138.56,11.6031368]
[1763257073485,8.64,138.6,138.57,4.38654373]
[1763257073987,8.64,138.6,138.56,12.2631368]
[1763257074296,8.64,138.6,138.56,11.6031368]
[1763257074297,9.35,138.6,138.56,11.6031368]
[1763257074865,16.5650808,138.6,138.56,11.6031368]
[1763257075293,0.71,138.59,138.56,7.21659307]
[1763257075592,0.71,138.59,138.56,11.6031368]
[1763257077818,15.85500828,138.6,138.56,11.6031368]
[1763257078031,16.56500828,138.6,138.56,11.6031368]
[1763257078757,4.38654373,138.58,138.49,7.22073795]
[1763257078891,0.71,138.57,138.53,4.38654373]
[1763257079099,0.71,138.57,138.54,4.38654373]
[1763257080294,0.71,138.57,138.54,11.60438307]
[1763257080693,12.31222667,138.59,138.54,11.60438307]
[1763257080987,12.31222667,138.59,138.53,11.60498064]
[1763257080988,4.38654373,138.58,138.53,11.60498064]
[1763257081207,5.09654373,138.58,138.53,11.60498064]
[1763257081417,5.09654373,138.57,138.53,7.87843691]
[1763257081915,4.38654373,138.56,138.51,9.78882769]
[1763257082213,20.93373831,138.56,138.51,4.38654373]
[1763257082395,0.71,138.55,138.51,5.04654373]
[1763257083415,8.62,138.56,138.52,4.38654373]
[1763257083617,8.62,138.56,138.52,5.04654373]
[1763257083825,13.71654373,138.56,138.52,0.66]
[1763257083988,0.71,138.55,138.51,4.38654373]
[1763257084189,7.927637,138.55,138.51,12.26578724]
[1763257084393,0.71,138.55,138.51,12.26578724]
[1763257084611,8.62,138.56,138.52,5.04654373]
[1763257085044,0.71,138.61,138.55,4.38654373]
[1763257085312,20.92970935,138.64,138.59,4.38654373]
[1763257085517,4.38654373,138.63,138.58,4.38654373]
[1763257085723,38.96202325,138.64,138.59,4.38654373]
[1763257085920,4.38654373,138.63,138.58,4.38654373]
[1763257086106,5.09654373,138.63,138.58,4.38654373]
[1763257086306,0.71,138.62,138.58,5.04654373]
[1763257086513,0.71,138.62,138.58,12.26217071]
[1763257086714,7.92399621,138.62,138.58,5.04654373]
[1763257086916,7.92399621,138.62,138.58,12.26248229]
[1763257087122,5.09654373,138.62,138.58,7.87593856]
[1763257087632,7.92402282,138.62,138.58,12.26248229]
[1763257087932,5.09654373,138.61,138.56,22.6512]
[1763257088109,5.09654373,138.61,138.53,11.60498713]
[1763257088110,4.38654373,138.57,138.53,11.60498713]
[1763257088304,4.38654373,138.59,138.54,4.38654373]
[1763257088505,11.60238054,138.59,138.54,4.38654373]
[1763257088705,0.71,138.58,138.54,11.60450839]
[1763257089007,5.09654373,138.58,138.54,11.60450839]
[1763257089204,15.83491718,138.61,138.56,4.38654373]
[1763257089416,8.62,138.61,138.58,4.38654373]
[1763257089615,11.60085571,138.62,138.57,4.38654373]
[1763257089816,4.38654373,138.6,138.55,4.38654373]
[1763257090019,4.38654373,138.59,138.55,4.38654373]
[1763257090219,5.09654373,138.59,138.55,4.38654373]
[1763257090435,8.62,138.6,138.55,11.60389488]
[1763257090608,5.09654373,138.62,138.58,4.38654373]
[1763257090931,12.31052429,138.62,138.58,4.38654373]
[1763257091229,0.71,138.61,138.57,13.00654373]
[1763257091417,0.71,138.61,138.57,13.66654373]
[1763257092239,0.71,138.61,138.58,7.21604849]
[1763257092410,0.71,138.61,138.58,11.60259222]
[1763257092606,7.21403016,138.62,138.58,12.26259222]
[1763257093122,0.67,138.61,138.57,13.00654373]
[1763257093333,0.67,138.61,138.57,13.69654373]
[1763257093707,0.67,138.61,138.57,20.91298816]
[1763257093913,4.38654373,138.62,138.57,20.91298816]
[1763257094213,5.10654373,138.62,138.57,20.91298816]
[1763257094739,0.72,138.61,138.57,20.91298816]
[1763257095236,7.93450778,138.61,138.57,20.91298816]
[1763257097139,0.72,138.61,138.57,20.91298816]
[1763257097513,4.38654373,138.58,138.51,9.78882769]
[1763257097713,4.38654373,138.56,138.51,18.40882769]
[1763257097943,4.38654373,138.56,138.52,4.38654373]
[1763257098237,5.10654373,138.57,138.53,4.38654373]
[1763257098542,0.72,138.57,138.53,4.38654373]
[1763257098727,0.72,138.57,138.53,5.07654373]
[1763257098926,0.72,138.57,138.54,7.21813194]
[1763257099127,4.38654373,138.58,138.54,12.29467567]
[1763257099428,12.32260894,138.58,138.54,12.29467567]
[1763257099625,12.32260894,138.58,138.54,7.21813194]
[1763257100650,4.38654373,138.55,138.51,15.83940513]
[1763257100813,9.34,138.57,138.51,20.91594886]
[1763257100814,4.38654373,138.56,138.51,20.91594886]
[1763257101013,13.72654373,138.57,138.52,4.38654373]
[1763257101240,20.94313238,138.57,138.52,4.38654373]
[1763257101440,0.72,138.56,138.52,5.07654373]
[1763257102129,5.10654373,138.56,138.52,0.69]
[1763257103124,0.72,138.56,138.53,7.21865299]
[1763257103440,7.93713804,138.56,138.52,12.29547503]
[1763257103629,12.32368177,138.56,138.52,12.29547503]
[1763257103831,0.72,138.56,138.52,12.29547503]
[1763257104245,12.32380709,138.56,138.52,7.9089313]
[1763257104449,4.38654373,138.53,138.49,22.6512]
[1763257104648,4.38654373,138.52,138.47,5.07654373]
[1763257104819,4.38654373,138.5,138.46,11.6088462]
[1763257105025,4.38654373,138.5,138.46,7.91230247]
[1763257105226,4.38654373,138.5,138.47,0.69]
[1763257105657,12.32680633,138.5,138.46,7.22230247]
[1763257105968,11.6067667,138.5,138.47,0.69]
[1763257106125,11.6067667,138.5,138.44,8.62]
[1763257106126,4.38654373,138.48,138.44,9.31]
[1763257106326,4.38654373,138.48,138.44,20.91974112]
[1763257106523,16.56032371,138.5,138.45,0.69]
[1763257106859,4.38654373,138.49,138.45,0.69]
[1763257107060,5.10654373,138.49,138.45,0.69]
[1763257107228,4.38654373,138.47,138.43,11.61018916]
[1763257107534,4.38654373,138.47,138.43,7.91364543]
[1763257107742,5.10654373,138.47,138.43,7.91364543]
[1763257108442,13.00654373,138.49,138.45,4.38654373]
[1763257108941,9.34,138.49,138.45,5.07654373]
[1763257109477,4.38654373,138.51,138.46,5.07654373]
[1763257109659,7.21801714,138.55,138.5,4.38654373]
[1763257109833,7.21801714,138.55,138.52,4.38654373]
[1763257110032,11.60456087,138.55,138.51,5.07654373]
[1763257110358,22.6512,138.58,138.54,4.38654373]
[1763257110359,0.72,138.58,138.54,4.38654373]
[1763257110533,9.34,138.58,138.54,4.38654373]
[1763257110730,16.55612313,138.58,138.54,4.38654373]
[1763257111060,9.34,138.58,138.54,4.38654373]
[1763257111648,18.03808906,138.6,138.55,5.07654373]
[1763257111649,7.21550301,138.6,138.55,5.07654373]
[1763257111855,15.83550301,138.6,138.56,4.38654373]
[1763257112049,16.55550301,138.6,138.57,4.38654373]
[1763257112258,15.83550301,138.6,138.57,5.07654373]
[1763257112628,8.62,138.6,138.57,5.07654373]
[1763257113252,15.83502638,138.6,138.57,4.38654373]
[1763257113442,8.62,138.6,138.57,4.38654373]
[1763257113749,8.62,138.6,138.57,11.60298472]
[1763257113951,8.62,138.6,138.57,12.29298472]
[1763257114152,15.83427605,138.62,138.59,4.38654373]
[1763257114457,8.62,138.62,138.59,4.38654373]
[1763257114756,8.62,138.62,138.59,5.07654373]
[1763257114937,8.62,138.62,138.59,6.97066411]
[1763257115134,15.59066411,138.62,138.57,32.9185282]
[1763257115335,15.59066411,138.62,138.56,7.21705692]
[1763257115336,6.97066411,138.6,138.56,7.21705692]
[1763257115650,14.90528264,138.61,138.56,14.18772103]
[1763257115846,14.90528264,138.61,138.56,14.87772103]
[1763257116650,7.93461853,138.61,138.57,0.69]
[1763257116851,14.90528264,138.61,138.57,0.69]
[1763257117265,15.59066411,138.62,138.57,7.66066411]
[1763257117437,8.62,138.62,138.58,6.97066411]
[1763257117638,8.62,138.62,138.59,7.21552781]
[1763257117856,6.97066411,138.6,138.55,14.18779877]
[1763257118053,6.97066411,138.6,138.56,8.62]
[1763257118348,7.69066411,138.6,138.56,8.62]
[1763257118969,7.69066411,138.6,138.55,14.87779877]
[1763257119174,14.90570275,138.6,138.55,14.87779877]
[1763257119767,6.97066411,138.58,138.54,15.83800071]
[1763257119973,16.31066411,138.59,138.54,22.80866482]
[1763257120268,16.31066411,138.59,138.54,23.49866482]
[1763257120669,6.97066411,138.57,138.53,7.21865281]
[1763257120865,6.97066411,138.57,138.52,22.80962504]
[1763257121075,6.97066411,138.57,138.53,7.90844882]
[1763257121248,6.97066411,138.58,138.53,14.87911293]
[1763257121647,7.69066411,138.58,138.53,14.87911293]
[1763257122060,7.69066411,138.58,138.54,0.69]
[1763257122581,7.69066411,138.58,138.53,14.18911293]
[1763257122765,7.69066411,138.58,138.53,14.87911018]
[1763257123086,15.59066411,138.59,138.55,14.18827508]
[1763257123273,7.66066411,138.59,138.55,7.21761097]
[1763257123954,7.66066411,138.58,138.54,7.21794893]
[1763257124256,7.66066411,138.58,138.54,7.93794893]
[1763257124756,0.69,138.57,138.54,7.21794893]
[1763257124956,6.97066411,138.58,138.54,7.21794893]
[1763257125156,7.66066411,138.58,138.54,7.21794893]
[1763257125350,14.18676369,138.58,138.53,14.18908519]
[1763257125557,7.66066411,138.57,138.53,7.93842108]
[1763257126269,0.69,138.57,138.53,14.90908519]
[1763257126465,14.18626324,138.59,138.54,7.69066411]
[1763257126974,7.66066411,138.59,138.54,7.69066411]
[1763257127176,14.87620099,138.59,138.55,7.21761097]
[1763257127595,14.87620099,138.59,138.54,14.90865796]
[1763257128788,7.66066411,138.58,138.54,6.97066411]
[1763257128990,0.69,138.59,138.55,0.72]
[1763257129160,7.66066411,138.59,138.55,0.72]
[1763257130073,7.66066411,138.59,138.5,32.44002769]
[1763257130074,6.97066411,138.56,138.5,30.34186411]
[1763257130383,6.97066411,138.55,138.5,23.53086142]
[1763257130582,6.97066411,138.55,138.51,22.6512]
[1763257130784,14.18943511,138.53,138.49,15.59066411]
[1763257130984,6.97066411,138.52,138.47,14.91230775]
[1763257131193,6.97066411,138.51,138.47,0.72]
[1763257131361,7.66066411,138.51,138.47,7.69066411]
[1763257131561,7.66066411,138.5,138.46,15.59066411]
[1763257131767,7.66066411,138.5,138.45,14.91319505]
[1763257132061,7.66066411,138.5,138.46,0.72]
[1763257132262,7.66066411,138.5,138.46,7.69066411]
[1763257132858,7.66066411,138.5,138.47,7.22178089]
[1763257133257,7.66066411,138.5,138.46,14.91278768]
[1763257134482,14.88091476,138.5,138.46,14.91278768]
[1763257134783,7.66066411,138.5,138.46,7.69066411]
[1763257134970,7.66066411,138.5,138.46,14.91285815]
[1763257135558,15.59066411,138.51,138.47,0.72]
[1763257135758,23.50051561,138.51,138.47,7.69066411]
[1763257135990,23.50051561,138.51,138.47,0.72]
[1763257136358,16.28066411,138.51,138.47,0.72]
[1763257136585,8.62,138.51,138.47,7.69066411]
[1763257136773,8.62,138.51,138.48,7.22125938]
[1763257136974,9.31,138.51,138.48,7.22125938]
[1763257137178,6.97066411,138.54,138.49,7.69066411]
[1763257137375,6.97066411,138.55,138.51,6.97066411]
[1763257137692,15.59066411,138.56,138.52,6.97066411]
[1763257137896,16.28066411,138.56,138.52,6.97066411]
[1763257138066,16.28066411,138.56,138.52,7.69066411]
[1763257138592,7.66066411,138.55,138.51,15.59066411]
[1763257138790,7.66066411,138.55,138.51,23.53033803]
[1763257138976,14.87828254,138.55,138.51,23.53033803]
[1763257139588,7.21765047,138.55,138.51,8.62]
[1763257139771,0.69,138.54,138.49,0.72]
[1763257139977,6.97066411,138.53,138.48,22.81192349]
[1763257140388,15.59066411,138.53,138.48,14.91192349]
[1763257140573,6.97066411,138.51,138.47,8.62]
[1763257140885,7.66066411,138.52,138.47,14.1921584]
[1763257141193,7.66066411,138.52,138.47,14.9121584]
[1763257141394,7.66066411,138.51,138.47,14.9121584]
[1763257141579,7.66066411,138.51,138.46,22.81285695]
[1763257141887,7.66066411,138.51,138.46,23.53285695]
[1763257142090,0.69,138.5,138.46,23.53285695]
[1763257142480,14.19056993,138.51,138.46,23.53285695]
[1763257142678,14.88056993,138.51,138.46,23.53285695]
[1763257142888,7.66066411,138.51,138.46,23.53285695]
[1763257143092,7.66066411,138.51,138.47,0.72]
[1763257143298,0.69,138.51,138.47,0.72]
[1763257143590,14.880403,138.51,138.47,0.72]
[1763257144374,7.66066411,138.51,138.47,0.72]
[1763257144572,8.62,138.53,138.48,14.19192349]
[1763257144907,37.52975815,138.55,138.5,6.97066411]
[1763257145395,37.52975815,138.55,138.51,0.72]
[1763257145576,8.62,138.56,138.52,6.97066411]
[1763257145890,0.69,138.56,138.52,6.97066411]
[1763257146109,7.66066411,138.59,138.54,6.97066411]
[1763257146286,16.28066411,138.59,138.54,7.69066411]
[1763257146804,23.49641778,138.59,138.55,7.21761097]
[1763257147096,0.69,138.58,138.55,7.21761097]
[1763257147800,7.66066411,138.58,138.54,0.72]
[1763257148093,7.66066411,138.58,138.54,7.93810282]
[1763257148293,15.59066411,138.59,138.54,14.90876693]
[1763257148492,16.28066411,138.59,138.54,14.90876693]
[1763257148793,6.97066411,138.58,138.54,7.93810378]
[1763257148986,6.97066411,138.56,138.52,15.83901603]
[1763257149398,16.28066411,138.56,138.52,7.21901603]
[1763257150013,16.28066411,138.56,138.52,7.93901603]
[1763257150299,8.62,138.56,138.53,0.72]
[1763257150502,45.45795241,138.58,138.53,0.72]
[1763257150706,46.14795241,138.58,138.53,0.72]
[1763257151284,7.66066411,138.58,138.53,7.69066411]
[1763257151484,16.28066411,138.58,138.53,7.69066411]
[1763257151688,6.97066411,138.57,138.52,7.21901603]
[1763257151889,7.66066411,138.57,138.52,14.18968014]